[Event "Early-Titled-Tuesday-Blitz-February-13-2024"]
[Site "Chess.com"]
[Date "2024.02.13"]
[Round "7"]
[White "Fjal"]
[Black "malakismayil"]
[Result "0-1"]
[WhiteElo "2251"]
[BlackElo "2522"]
[TimeControl "180+1"]
[EndTime "9:21:06 PST"]
[Termination "malakismayil won by checkmate"]

1. Nf3 {[%clk 0:02:57]} 1... d5 {[%clk 0:02:56.9]} 2. g3 {[%clk 0:02:38.7]} 2...
e6 {[%clk 0:02:56.8]} 3. Bg2 {[%clk 0:02:39.2]} 3... Nf6 {[%clk 0:02:57.7]} 4.
O-O {[%clk 0:02:40]} 4... Be7 {[%clk 0:02:58.5]} 5. d3 {[%clk 0:02:40.9]} 5...
O-O {[%clk 0:02:59.2]} 6. Nbd2 {[%clk 0:02:41.6]} 6... c5 {[%clk 0:02:59.9]} 7.
e4 {[%clk 0:02:42.5]} 7... Nc6 {[%clk 0:03:00.4]} 8. e5 {[%clk 0:02:43]} 8...
Nd7 {[%clk 0:03:00.7]} 9. Re1 {[%clk 0:02:43.9]} 9... Qc7 {[%clk 0:03:01.5]} 10.
Qe2 {[%clk 0:02:44.4]} 10... b5 {[%clk 0:03:00.8]} 11. Nf1 {[%clk 0:02:43.9]}
11... Ba6 {[%clk 0:02:57]} 12. Bf4 {[%clk 0:02:44.3]} 12... b4 {[%clk
0:02:56.9]} 13. h4 {[%clk 0:02:42]} 13... c4 {[%clk 0:02:57.2]} 14. d4 {[%clk
0:02:34.3]} 14... Rfe8 {[%clk 0:02:52.2]} 15. N1h2 {[%clk 0:02:29.6]} 15... Qb7
{[%clk 0:02:48.2]} 16. Qe3 {[%clk 0:02:29.1]} 16... c3 {[%clk 0:02:34.5]} 17. b3
{[%clk 0:02:28.6]} 17... Bb5 {[%clk 0:02:27.4]} 18. h5 {[%clk 0:02:25.5]} 18...
a5 {[%clk 0:02:21.1]} 19. Ng4 {[%clk 0:02:23.7]} 19... a4 {[%clk 0:02:17.3]} 20.
Bh6 {[%clk 0:02:23.1]} 20... Bf8 {[%clk 0:02:07.6]} 21. Bxg7 {[%clk 0:02:08.7]}
21... Bxg7 {[%clk 0:02:05.5]} 22. Qg5 {[%clk 0:02:09]} 22... Kh8 {[%clk
0:01:36.4]} 23. h6 {[%clk 0:01:53.4]} 23... Bf8 {[%clk 0:01:20.5]} 24. Nf6
{[%clk 0:01:46.8]} 24... Nxf6 {[%clk 0:01:19.1]} 25. Qxf6+ {[%clk 0:01:46.6]}
25... Kg8 {[%clk 0:01:19]} 26. Qg5+ {[%clk 0:01:40.8]} 26... Kh8 {[%clk
0:01:19.3]} 27. Qf6+ {[%clk 0:00:51.2]} 27... Kg8 {[%clk 0:01:18.3]} 28. Ng5
{[%clk 0:00:51.8]} 28... Nxd4 {[%clk 0:01:01.6]} 29. Re4 {[%clk 0:00:43.3]}
29... Ne2+ {[%clk 0:00:28.5]} 30. Kh2 {[%clk 0:00:40.1]} 30... Qe7 {[%clk
0:00:28.6]} 31. Qf3 {[%clk 0:00:10.7]} 31... dxe4 {[%clk 0:00:22.9]} 32. Nxe4
{[%clk 0:00:11.1]} 32... Bxh6 {[%clk 0:00:17.3]} 33. Nf6+ {[%clk 0:00:11.4]}
33... Kh8 {[%clk 0:00:17.1]} 34. Qh5 {[%clk 0:00:10.5]} 34... Qf8 {[%clk
0:00:16.6]} 35. bxa4 {[%clk 0:00:06.5]} 35... Bc4 {[%clk 0:00:10.5]} 36. Bxa8
{[%clk 0:00:03]} 36... Rxa8 {[%clk 0:00:09.8]} 37. Rh1 {[%clk 0:00:01.9]} 37...
Qg7 {[%clk 0:00:07.5]} 38. Kg2 {[%clk 0:00:02]} 38... Qg6 {[%clk 0:00:08]} 39.
Qh4 {[%clk 0:00:02]} 39... Nf4+ {[%clk 0:00:05.7]} 40. Kf3 {[%clk 0:00:01.7]}
40... Bd5+ {[%clk 0:00:06]} 41. Nxd5 {[%clk 0:00:01.7]} 41... exd5 {[%clk
0:00:04.8]} 42. gxf4 {[%clk 0:00:02.6]} 42... Qe4+ {[%clk 0:00:04.6]} 43. Kg3
{[%clk 0:00:01.7]} 43... Rg8+ {[%clk 0:00:04.6]} 44. Kh2 {[%clk 0:00:01.8]}
44... Qg2# {[%clk 0:00:04.8]} 0-1

[Event "Early-Titled-Tuesday-Blitz-February-13-2024"]
[Site "Chess.com"]
[Date "2024.02.13"]
[Round "7"]
[White "GlavkonVVS"]
[Black "ClaudiaSof"]
[Result "0-1"]
[WhiteElo "2568"]
[BlackElo "2324"]
[TimeControl "180+1"]
[EndTime "9:21:06 PST"]
[Termination "ClaudiaSof won by resignation"]

1. Nf3 {[%clk 0:03:00.9]} 1... Nf6 {[%clk 0:02:58.6]} 2. g3 {[%clk 0:02:58.7]}
2... g6 {[%clk 0:02:58.4]} 3. Bg2 {[%clk 0:02:58.8]} 3... Bg7 {[%clk 0:02:59]}
4. O-O {[%clk 0:02:59]} 4... O-O {[%clk 0:02:59.6]} 5. d3 {[%clk 0:02:59.4]}
5... d6 {[%clk 0:03:00.2]} 6. c4 {[%clk 0:02:58.2]} 6... e5 {[%clk 0:02:59.5]}
7. Nc3 {[%clk 0:02:58.5]} 7... Nc6 {[%clk 0:02:59.1]} 8. Rb1 {[%clk 0:02:57.1]}
8... a5 {[%clk 0:02:56.5]} 9. a3 {[%clk 0:02:57.2]} 9... h6 {[%clk 0:02:55.6]}
10. b4 {[%clk 0:02:56.8]} 10... axb4 {[%clk 0:02:54.8]} 11. axb4 {[%clk
0:02:57.2]} 11... Ne7 {[%clk 0:02:41.3]} 12. b5 {[%clk 0:02:49.6]} 12... Be6
{[%clk 0:02:39.9]} 13. b6 {[%clk 0:02:45.5]} 13... c6 {[%clk 0:02:39]} 14. c5
{[%clk 0:02:40.7]} 14... Nfd5 {[%clk 0:02:37.2]} 15. Ne4 {[%clk 0:02:38.1]}
15... Nc8 {[%clk 0:02:28.3]} 16. Bb2 {[%clk 0:02:31.3]} 16... f5 {[%clk
0:02:18.6]} 17. Nxd6 {[%clk 0:02:29.7]} 17... Nxd6 {[%clk 0:02:18]} 18. cxd6
{[%clk 0:02:29]} 18... Qxd6 {[%clk 0:02:18]} 19. e4 {[%clk 0:02:21.7]} 19... Ne7
{[%clk 0:02:08.1]} 20. d4 {[%clk 0:02:12]} 20... fxe4 {[%clk 0:01:59.2]} 21.
Nxe5 {[%clk 0:02:11.8]} 21... Bd5 {[%clk 0:01:55]} 22. Qe2 {[%clk 0:02:04.1]}
22... Ra2 {[%clk 0:01:38]} 23. Bxe4 {[%clk 0:02:02.2]} 23... Nf5 {[%clk
0:01:37]} 24. Rfd1 {[%clk 0:01:51.9]} 24... Re8 {[%clk 0:01:16.3]} 25. Bxd5+
{[%clk 0:01:45.3]} 25... Qxd5 {[%clk 0:01:14.7]} 26. Qg4 {[%clk 0:01:44.9]}
26... Ne7 {[%clk 0:00:54.6]} 27. Nxg6 {[%clk 0:01:39.6]} 27... Nxg6 {[%clk
0:00:54.5]} 28. Qxg6 {[%clk 0:01:39.7]} 28... Re2 {[%clk 0:00:53.5]} 29. Re1
{[%clk 0:01:29.9]} 29... Raxb2 {[%clk 0:00:52]} 30. Ra1 {[%clk 0:01:17.8]} 30...
Ra2 {[%clk 0:00:49.3]} 31. Rad1 {[%clk 0:01:10.5]} 31... Qf7 {[%clk 0:00:48.6]}
32. Qxf7+ {[%clk 0:01:05.6]} 32... Kxf7 {[%clk 0:00:48]} 33. Rxe2 {[%clk
0:01:05.6]} 33... Rxe2 {[%clk 0:00:47]} 34. d5 {[%clk 0:01:05.9]} 34... c5
{[%clk 0:00:46.2]} 35. d6 {[%clk 0:01:05]} 35... Bd4 {[%clk 0:00:45.1]} 36. d7
{[%clk 0:01:00.9]} 36... Ke7 {[%clk 0:00:44.1]} 37. Kh1 {[%clk 0:00:52.8]} 37...
Rxf2 {[%clk 0:00:41.5]} 38. Re1+ {[%clk 0:00:47.8]} 38... Kxd7 {[%clk
0:00:41.3]} 39. h3 {[%clk 0:00:44]} 39... Rf6 {[%clk 0:00:39.5]} 40. h4 {[%clk
0:00:44.6]} 40... Kc6 {[%clk 0:00:38]} 41. Kg2 {[%clk 0:00:42.5]} 41... Kxb6
{[%clk 0:00:37.2]} 42. g4 {[%clk 0:00:42.3]} 42... Kc6 {[%clk 0:00:36.9]} 43.
Re8 {[%clk 0:00:33.2]} 43... b5 {[%clk 0:00:35.5]} 44. Kh3 {[%clk 0:00:28.5]}
44... b4 {[%clk 0:00:33.3]} 45. g5 {[%clk 0:00:27.6]} 45... hxg5 {[%clk
0:00:33.5]} 46. hxg5 {[%clk 0:00:26.5]} 46... Rf1 {[%clk 0:00:34]} 47. Kg4
{[%clk 0:00:21.6]} 47... Kd5 {[%clk 0:00:33.9]} 48. Rd8+ {[%clk 0:00:20]} 48...
Kc4 {[%clk 0:00:32.9]} 49. g6 {[%clk 0:00:19]} 49... Rg1+ {[%clk 0:00:33.4]} 50.
Kf5 {[%clk 0:00:17.6]} 50... b3 {[%clk 0:00:33.6]} 51. Rb8 {[%clk 0:00:15.9]}
51... b2 {[%clk 0:00:33.6]} 52. Rb7 {[%clk 0:00:12.6]} 52... b1=Q+ {[%clk
0:00:33.1]} 53. Rxb1 {[%clk 0:00:11.7]} 0-1

[Event "Early-Titled-Tuesday-Blitz-February-13-2024"]
[Site "Chess.com"]
[Date "2024.02.13"]
[Round "7"]
[White "YurasovMat-2012"]
[Black "Elsa167"]
[Result "0-1"]
[WhiteElo "2676"]
[BlackElo "2905"]
[TimeControl "180+1"]
[EndTime "9:21:16 PST"]
[Termination "Elsa167 won by resignation"]

1. e4 {[%clk 0:02:59.7]} 1... c5 {[%clk 0:02:58.8]} 2. Nf3 {[%clk 0:02:59.7]}
2... e6 {[%clk 0:02:58.4]} 3. b3 {[%clk 0:02:58.7]} 3... d5 {[%clk 0:02:57.5]}
4. exd5 {[%clk 0:02:58.6]} 4... exd5 {[%clk 0:02:58.4]} 5. Bb2 {[%clk 0:02:59]}
5... Nc6 {[%clk 0:02:58.5]} 6. Bb5 {[%clk 0:02:58.4]} 6... Nf6 {[%clk
0:02:58.7]} 7. O-O {[%clk 0:02:58.4]} 7... Be7 {[%clk 0:02:58.5]} 8. d4 {[%clk
0:02:58.6]} 8... O-O {[%clk 0:02:58.2]} 9. Re1 {[%clk 0:02:57.9]} 9... Bg4
{[%clk 0:02:56.4]} 10. Bxc6 {[%clk 0:02:41]} 10... bxc6 {[%clk 0:02:55.9]} 11.
h3 {[%clk 0:02:41.1]} 11... Bxf3 {[%clk 0:02:50]} 12. Qxf3 {[%clk 0:02:42]}
12... Ne4 {[%clk 0:02:47.4]} 13. Nc3 {[%clk 0:02:35.2]} 13... f5 {[%clk
0:02:36.1]} 14. Ne2 {[%clk 0:02:34.7]} 14... f4 {[%clk 0:02:09.5]} 15. dxc5
{[%clk 0:02:22.3]} 15... Bxc5 {[%clk 0:02:10.4]} 16. Nd4 {[%clk 0:02:21.8]}
16... Qf6 {[%clk 0:01:55.1]} 17. Rad1 {[%clk 0:02:20.9]} 17... Rae8 {[%clk
0:01:50]} 18. Ba1 {[%clk 0:02:18.5]} 18... Nd2 {[%clk 0:01:28]} 19. Qd3 {[%clk
0:02:14.2]} 19... Ne4 {[%clk 0:01:12]} 20. Qf3 {[%clk 0:02:09.4]} 20... Qg6
{[%clk 0:01:06.3]} 21. Qg4 {[%clk 0:02:04]} 21... Qf7 {[%clk 0:00:47.7]} 22. Re2
{[%clk 0:01:59.4]} 22... h5 {[%clk 0:00:42.5]} 23. Qf3 {[%clk 0:01:58.4]} 23...
Ng5 {[%clk 0:00:37.2]} 24. Qd3 {[%clk 0:01:58.1]} 24... f3 {[%clk 0:00:18.7]}
25. Rxe8 {[%clk 0:01:57]} 25... Rxe8 {[%clk 0:00:19.2]} 26. Nxf3 {[%clk
0:01:51.5]} 26... Nxf3+ {[%clk 0:00:19.4]} 27. Qxf3 {[%clk 0:01:46]} 27... Qxf3
{[%clk 0:00:19.1]} 28. gxf3 {[%clk 0:01:46.3]} 28... Re2 {[%clk 0:00:19.8]} 29.
Bd4 {[%clk 0:01:46.8]} 29... Rxc2 {[%clk 0:00:09.3]} 30. Bxc5 {[%clk 0:01:44.6]}
30... Rxc5 {[%clk 0:00:10.2]} 31. Rd4 {[%clk 0:01:45.1]} 31... Kf7 {[%clk
0:00:07.4]} 32. Kf1 {[%clk 0:01:44.2]} 32... Ke6 {[%clk 0:00:07.3]} 33. f4
{[%clk 0:01:41.6]} 33... g6 {[%clk 0:00:07]} 34. Kg2 {[%clk 0:01:39.4]} 34... a5
{[%clk 0:00:05.9]} 35. Ra4 {[%clk 0:01:31]} 35... Rb5 {[%clk 0:00:04.1]} 36. Rd4
{[%clk 0:01:28.4]} 36... c5 {[%clk 0:00:04]} 37. Rd1 {[%clk 0:01:27.9]} 37... a4
{[%clk 0:00:04.2]} 38. Rd3 {[%clk 0:01:22.3]} 38... axb3 {[%clk 0:00:03.9]} 39.
axb3 {[%clk 0:01:22.2]} 39... d4 {[%clk 0:00:04.5]} 40. Rg3 {[%clk 0:01:19.8]}
40... Kd5 {[%clk 0:00:03.2]} 41. Kf1 {[%clk 0:01:11.6]} 41... Ke4 {[%clk
0:00:02.3]} 42. Rxg6 {[%clk 0:01:03.3]} 42... Rxb3 {[%clk 0:00:01.9]} 43. Rc6
{[%clk 0:01:02.3]} 43... d3 {[%clk 0:00:01.3]} 44. Ke1 {[%clk 0:00:56]} 44...
Rb1+ {[%clk 0:00:01.6]} 45. Kd2 {[%clk 0:00:56.2]} 45... Rb2+ {[%clk 0:00:02.5]}
46. Kc1 {[%clk 0:00:51.2]} 46... Rc2+ {[%clk 0:00:02.3]} 47. Kd1 {[%clk
0:00:51.1]} 47... Kd4 {[%clk 0:00:03.2]} 48. Ke1 {[%clk 0:00:37.4]} 48... c4
{[%clk 0:00:02.8]} 49. f5 {[%clk 0:00:31]} 49... Kc3 {[%clk 0:00:03.3]} 50. f3
{[%clk 0:00:17.5]} 50... Rc1+ {[%clk 0:00:02.5]} 51. Kf2 {[%clk 0:00:17.8]}
51... d2 {[%clk 0:00:03.2]} 52. Rd6 {[%clk 0:00:17.4]} 52... d1=Q {[%clk
0:00:03.8]} 53. Rxd1 {[%clk 0:00:18.3]} 53... Rxd1 {[%clk 0:00:04.7]} 54. f6
{[%clk 0:00:19]} 54... Rd6 {[%clk 0:00:05.2]} 0-1

[Event "Early-Titled-Tuesday-Blitz-February-13-2024"]
[Site "Chess.com"]
[Date "2024.02.13"]
[Round "7"]
[White "Anton_Demchenko"]
[Black "Gerodot71"]
[Result "1-0"]
[WhiteElo "2943"]
[BlackElo "2643"]
[TimeControl "180+1"]
[EndTime "9:21:18 PST"]
[Termination "Anton_Demchenko won by resignation"]

1. e4 {[%clk 0:03:00.5]} 1... c5 {[%clk 0:02:42.9]} 2. Nf3 {[%clk 0:02:57.3]}
2... d6 {[%clk 0:02:43.2]} 3. d4 {[%clk 0:02:57.7]} 3... cxd4 {[%clk 0:02:44.1]}
4. Qxd4 {[%clk 0:02:58.3]} 4... a6 {[%clk 0:02:42.9]} 5. Be2 {[%clk 0:02:55.3]}
5... Nc6 {[%clk 0:02:43]} 6. Qe3 {[%clk 0:02:55.6]} 6... g6 {[%clk 0:02:42.4]}
7. O-O {[%clk 0:02:55.5]} 7... Bg7 {[%clk 0:02:42.9]} 8. Rd1 {[%clk 0:02:55.2]}
8... Nf6 {[%clk 0:02:42.1]} 9. h3 {[%clk 0:02:55.8]} 9... O-O {[%clk 0:02:42.3]}
10. Nc3 {[%clk 0:02:46.6]} 10... Nd7 {[%clk 0:02:35.9]} 11. Rb1 {[%clk
0:02:36.1]} 11... Nde5 {[%clk 0:02:28.1]} 12. Nxe5 {[%clk 0:02:32.9]} 12... Nxe5
{[%clk 0:02:29]} 13. Nd5 {[%clk 0:02:31.1]} 13... Be6 {[%clk 0:02:25.3]} 14. Nb6
{[%clk 0:02:17.3]} 14... Rb8 {[%clk 0:02:24.2]} 15. b3 {[%clk 0:01:56.5]} 15...
Nd7 {[%clk 0:02:17.9]} 16. Nd5 {[%clk 0:01:56.5]} 16... b5 {[%clk 0:02:05.7]}
17. c4 {[%clk 0:01:44.3]} 17... b4 {[%clk 0:01:44.1]} 18. Bb2 {[%clk 0:01:40.6]}
18... Bxb2 {[%clk 0:01:43]} 19. Rxb2 {[%clk 0:01:41.1]} 19... Nc5 {[%clk
0:01:43.6]} 20. e5 {[%clk 0:01:36.9]} 20... Bxd5 {[%clk 0:01:25.3]} 21. Rxd5
{[%clk 0:01:36.2]} 21... Qc7 {[%clk 0:01:24.3]} 22. Rbd2 {[%clk 0:01:34]} 22...
Rbd8 {[%clk 0:01:24.4]} 23. h4 {[%clk 0:01:15.8]} 23... Ne6 {[%clk 0:01:12.8]}
24. exd6 {[%clk 0:01:14.9]} 24... exd6 {[%clk 0:01:09.3]} 25. h5 {[%clk
0:01:13.5]} 25... Nc5 {[%clk 0:01:04.9]} 26. Bf3 {[%clk 0:01:08.5]} 26... Rfe8
{[%clk 0:01:03.6]} 27. Qf4 {[%clk 0:01:07.1]} 27... Re6 {[%clk 0:00:54.3]} 28.
g3 {[%clk 0:00:52.8]} 28... Qe7 {[%clk 0:00:53.3]} 29. Qd4 {[%clk 0:00:45.6]}
29... Ne4 {[%clk 0:00:34.7]} 30. h6 {[%clk 0:00:36.8]} 30... f5 {[%clk 0:00:23]}
31. Bxe4 {[%clk 0:00:30.8]} 31... Rxe4 {[%clk 0:00:23.9]} 32. Qd3 {[%clk
0:00:31.3]} 32... Re1+ {[%clk 0:00:15.8]} 33. Kg2 {[%clk 0:00:31.2]} 33... Qg5
{[%clk 0:00:11.8]} 34. Re2 {[%clk 0:00:27.8]} 34... Rxe2 {[%clk 0:00:11.4]} 35.
Qxe2 {[%clk 0:00:28.4]} 35... Qxh6 {[%clk 0:00:11.9]} 36. c5 {[%clk 0:00:22.7]}
36... Qf8 {[%clk 0:00:11.6]} 37. c6 {[%clk 0:00:05.5]} 37... Qf7 {[%clk
0:00:08.9]} 38. Ra5 {[%clk 0:00:05]} 38... Rc8 {[%clk 0:00:05.3]} 39. Qxa6
{[%clk 0:00:04.9]} 39... Qc7 {[%clk 0:00:02.8]} 40. Rb5 {[%clk 0:00:05.6]} 40...
Qxc6+ {[%clk 0:00:01]} 41. Qxc6 {[%clk 0:00:06.2]} 41... Rxc6 {[%clk 0:00:01.9]}
42. Rxb4 {[%clk 0:00:07.1]} 42... Ra6 {[%clk 0:00:02.4]} 43. a4 {[%clk
0:00:07.6]} 43... Rc6 {[%clk 0:00:02.5]} 44. a5 {[%clk 0:00:06.4]} 44... Ra6
{[%clk 0:00:01.3]} 45. Ra4 {[%clk 0:00:06.8]} 45... d5 {[%clk 0:00:01.9]} 46. b4
{[%clk 0:00:07.5]} 46... d4 {[%clk 0:00:02.5]} 47. b5 {[%clk 0:00:08.2]} 47...
Rd6 {[%clk 0:00:03]} 48. Kf1 {[%clk 0:00:06.9]} 48... d3 {[%clk 0:00:03.1]} 49.
Ke1 {[%clk 0:00:07.7]} 1-0

[Event "Early-Titled-Tuesday-Blitz-February-13-2024"]
[Site "Chess.com"]
[Date "2024.02.13"]
[Round "7"]
[White "levallem"]
[Black "PepeCuenca"]
[Result "1-0"]
[WhiteElo "2342"]
[BlackElo "2675"]
[TimeControl "180+1"]
[EndTime "9:21:20 PST"]
[Termination "levallem won on time"]

1. d4 {[%clk 0:03:00.9]} 1... Nf6 {[%clk 0:02:59.9]} 2. Nf3 {[%clk 0:03:00.7]}
2... d5 {[%clk 0:02:58.3]} 3. e3 {[%clk 0:03:01.6]} 3... e6 {[%clk 0:02:53.8]}
4. Bd3 {[%clk 0:03:01.7]} 4... b6 {[%clk 0:02:53.3]} 5. b3 {[%clk 0:03:01.3]}
5... Bb7 {[%clk 0:02:53.7]} 6. Bb2 {[%clk 0:03:01.8]} 6... Be7 {[%clk 0:02:49]}
7. Nbd2 {[%clk 0:03:02.3]} 7... c5 {[%clk 0:02:46]} 8. O-O {[%clk 0:03:02.6]}
8... O-O {[%clk 0:02:45.8]} 9. Ne5 {[%clk 0:02:56.4]} 9... Nbd7 {[%clk
0:02:39.9]} 10. f4 {[%clk 0:02:56.5]} 10... Ne4 {[%clk 0:02:03.9]} 11. Nxe4
{[%clk 0:02:54.8]} 11... dxe4 {[%clk 0:02:03]} 12. Bc4 {[%clk 0:02:54.9]} 12...
cxd4 {[%clk 0:01:54.2]} 13. Nxd7 {[%clk 0:02:40.9]} 13... Qxd7 {[%clk
0:01:52.7]} 14. Qxd4 {[%clk 0:02:40.7]} 14... Qxd4 {[%clk 0:01:51.7]} 15. exd4
{[%clk 0:02:28.1]} 15... Bd5 {[%clk 0:01:18.1]} 16. Be2 {[%clk 0:02:22.1]} 16...
f5 {[%clk 0:01:14.9]} 17. g3 {[%clk 0:02:19.6]} 17... Bf6 {[%clk 0:01:13.6]} 18.
Kf2 {[%clk 0:02:16.1]} 18... g5 {[%clk 0:01:08.6]} 19. Ke3 {[%clk 0:02:14]}
19... gxf4+ {[%clk 0:00:57.4]} 20. gxf4 {[%clk 0:02:13.6]} 20... Kh8 {[%clk
0:00:49.3]} 21. c4 {[%clk 0:02:12.7]} 21... Bb7 {[%clk 0:00:49]} 22. Rg1 {[%clk
0:02:05.3]} 22... Rg8 {[%clk 0:00:47.3]} 23. Rg3 {[%clk 0:01:55.7]} 23... Rg6
{[%clk 0:00:38.6]} 24. Rag1 {[%clk 0:01:54.1]} 24... Rag8 {[%clk 0:00:37.4]} 25.
a4 {[%clk 0:01:54.2]} 25... Bc6 {[%clk 0:00:25.2]} 26. Bh5 {[%clk 0:01:18.9]}
26... Rxg3+ {[%clk 0:00:23.8]} 27. Rxg3 {[%clk 0:01:18.1]} 27... Rxg3+ {[%clk
0:00:22.6]} 28. hxg3 {[%clk 0:01:19]} 28... Bd7 {[%clk 0:00:22]} 29. Bc3 {[%clk
0:01:16]} 29... Kg7 {[%clk 0:00:21.4]} 30. Be2 {[%clk 0:01:13.2]} 30... Kf7
{[%clk 0:00:18.5]} 31. a5 {[%clk 0:01:11.5]} 31... Ke7 {[%clk 0:00:18.7]} 32.
axb6 {[%clk 0:01:09.6]} 32... axb6 {[%clk 0:00:18.9]} 33. g4 {[%clk 0:01:07.9]}
33... h6 {[%clk 0:00:16.5]} 34. b4 {[%clk 0:01:00.6]} 34... Kd8 {[%clk
0:00:09.7]} 35. c5 {[%clk 0:00:57.5]} 35... b5 {[%clk 0:00:09.6]} 36. gxf5
{[%clk 0:00:52.7]} 36... exf5 {[%clk 0:00:09.8]} 37. Bh5 {[%clk 0:00:51.5]}
37... Be6 {[%clk 0:00:08.5]} 38. Be2 {[%clk 0:00:49.2]} 38... Bd7 {[%clk
0:00:07.1]} 39. Kd2 {[%clk 0:00:45.5]} 39... Kc7 {[%clk 0:00:06.4]} 40. d5
{[%clk 0:00:43.5]} 40... Bxc3+ {[%clk 0:00:03.4]} 41. Kxc3 {[%clk 0:00:43.4]}
41... Be8 {[%clk 0:00:04.1]} 42. Kd4 {[%clk 0:00:40.9]} 42... h5 {[%clk
0:00:04.6]} 43. Ke5 {[%clk 0:00:40.6]} 43... h4 {[%clk 0:00:04.9]} 44. Kxf5
{[%clk 0:00:36.9]} 44... e3 {[%clk 0:00:03.2]} 45. Kg4 {[%clk 0:00:33]} 45...
Bh5+ {[%clk 0:00:01.8]} 46. Kxh5 {[%clk 0:00:30]} 46... h3 {[%clk 0:00:02.3]}
47. d6+ {[%clk 0:00:30.2]} 47... Kd8 {[%clk 0:00:02]} 48. c6 {[%clk 0:00:27.7]}
48... h2 {[%clk 0:00:02.7]} 49. c7+ {[%clk 0:00:25.6]} 49... Kd7 {[%clk
0:00:03.4]} 50. Bg4+ {[%clk 0:00:24.3]} 50... Kxd6 {[%clk 0:00:03.7]} 51. c8=Q
{[%clk 0:00:24.6]} 51... h1=Q+ {[%clk 0:00:04.6]} 52. Kg5 {[%clk 0:00:24.3]}
52... Qd5+ {[%clk 0:00:04.7]} 53. f5 {[%clk 0:00:20.5]} 53... Ke5 {[%clk
0:00:03]} 54. Qe6+ {[%clk 0:00:18.4]} 54... Qxe6 {[%clk 0:00:02.5]} 55. fxe6
{[%clk 0:00:19]} 55... e2 {[%clk 0:00:02.2]} 56. Bxe2 {[%clk 0:00:18.7]} 56...
Kxe6 {[%clk 0:00:02.7]} 57. Bxb5 {[%clk 0:00:19.2]} 1-0

[Event "Early-Titled-Tuesday-Blitz-February-13-2024"]
[Site "Chess.com"]
[Date "2024.02.13"]
[Round "7"]
[White "LiamPutnam2008"]
[Black "FGHSMN"]
[Result "0-1"]
[WhiteElo "2809"]
[BlackElo "2982"]
[TimeControl "180+1"]
[EndTime "9:21:22 PST"]
[Termination "FGHSMN won by resignation"]

1. e4 {[%clk 0:03:00.9]} 1... c6 {[%clk 0:02:56.6]} 2. d4 {[%clk 0:02:56.6]}
2... d5 {[%clk 0:02:57.5]} 3. Nd2 {[%clk 0:02:52.9]} 3... g6 {[%clk 0:02:53.9]}
4. Ngf3 {[%clk 0:02:38.7]} 4... Bg7 {[%clk 0:02:53.7]} 5. Bd3 {[%clk 0:02:39.2]}
5... Nf6 {[%clk 0:02:35.7]} 6. O-O {[%clk 0:02:24.5]} 6... Bg4 {[%clk
0:02:32.3]} 7. e5 {[%clk 0:02:23]} 7... Nfd7 {[%clk 0:02:30.6]} 8. h3 {[%clk
0:02:23.4]} 8... Bxf3 {[%clk 0:02:30.5]} 9. Nxf3 {[%clk 0:02:24.3]} 9... e6
{[%clk 0:02:29.4]} 10. b4 {[%clk 0:01:53.9]} 10... O-O {[%clk 0:02:26.3]} 11. a4
{[%clk 0:01:50.2]} 11... a5 {[%clk 0:02:18.5]} 12. c3 {[%clk 0:01:45.8]} 12...
axb4 {[%clk 0:02:10.7]} 13. cxb4 {[%clk 0:01:46.7]} 13... Na6 {[%clk 0:02:11.2]}
14. Bd2 {[%clk 0:01:35.7]} 14... Qe7 {[%clk 0:01:57.4]} 15. Qb3 {[%clk
0:01:34.4]} 15... Nc7 {[%clk 0:01:36.3]} 16. Rfc1 {[%clk 0:01:28.6]} 16... Rfc8
{[%clk 0:01:33.9]} 17. b5 {[%clk 0:01:05.8]} 17... c5 {[%clk 0:01:33.3]} 18.
dxc5 {[%clk 0:00:58.3]} 18... Nxc5 {[%clk 0:01:33]} 19. Qb4 {[%clk 0:00:51.9]}
19... Bf8 {[%clk 0:01:27.8]} 20. Be2 {[%clk 0:00:49]} 20... d4 {[%clk
0:01:04.4]} 21. Bg5 {[%clk 0:00:36.4]} 21... Qe8 {[%clk 0:00:44.7]} 22. Rxc5
{[%clk 0:00:19.2]} 22... b6 {[%clk 0:00:41.3]} 23. Qxd4 {[%clk 0:00:19.8]} 23...
bxc5 {[%clk 0:00:38.3]} 24. Qh4 {[%clk 0:00:20.2]} 24... Nd5 {[%clk 0:00:37.8]}
25. Bd3 {[%clk 0:00:13.2]} 25... Bg7 {[%clk 0:00:31.3]} 26. Be4 {[%clk
0:00:12.6]} 26... c4 {[%clk 0:00:30]} 27. Bf6 {[%clk 0:00:08.2]} 27... Qf8
{[%clk 0:00:23.1]} 28. Nd4 {[%clk 0:00:07.2]} 28... c3 {[%clk 0:00:21]} 29. Nc6
{[%clk 0:00:07]} 29... Rc7 {[%clk 0:00:17]} 30. Bxd5 {[%clk 0:00:06.9]} 30...
exd5 {[%clk 0:00:17.4]} 31. Qd4 {[%clk 0:00:06.4]} 31... c2 {[%clk 0:00:16.5]}
32. Rc1 {[%clk 0:00:05]} 32... Qa3 {[%clk 0:00:15]} 33. Rxc2 {[%clk 0:00:03.2]}
33... Rxa4 {[%clk 0:00:15.4]} 34. Qxd5 {[%clk 0:00:02]} 34... Bxf6 {[%clk
0:00:09.9]} 35. exf6 {[%clk 0:00:02.9]} 35... Qa1+ {[%clk 0:00:10.4]} 36. Kh2
{[%clk 0:00:03.6]} 36... Qxf6 {[%clk 0:00:11.3]} 37. b6 {[%clk 0:00:04.3]} 37...
Rb7 {[%clk 0:00:09.3]} 38. Qc5 {[%clk 0:00:04.4]} 38... Ra8 {[%clk 0:00:08.4]}
39. Nb4 {[%clk 0:00:04.2]} 39... Rxb6 {[%clk 0:00:07.2]} 40. Nd5 {[%clk
0:00:04.5]} 40... Qd6+ {[%clk 0:00:07.4]} 41. g3 {[%clk 0:00:04.2]} 41... Qxc5
{[%clk 0:00:07.1]} 42. Rxc5 {[%clk 0:00:05.1]} 42... Rb2 {[%clk 0:00:07.4]} 43.
Nf6+ {[%clk 0:00:04.2]} 43... Kg7 {[%clk 0:00:07.5]} 44. Ng4 {[%clk 0:00:04.7]}
44... h5 {[%clk 0:00:07.4]} 45. Ne3 {[%clk 0:00:04.5]} 45... Rxf2+ {[%clk
0:00:08]} 46. Kg1 {[%clk 0:00:04.9]} 46... Re2 {[%clk 0:00:08.7]} 47. Nf1 {[%clk
0:00:05.2]} 47... Ra1 {[%clk 0:00:09.2]} 48. Rc3 {[%clk 0:00:05.8]} 48... Ree1
{[%clk 0:00:09.2]} 49. Rf3 {[%clk 0:00:06.6]} 49... Re2 {[%clk 0:00:09.9]} 50.
Rf4 {[%clk 0:00:06.6]} 50... Raa2 {[%clk 0:00:10.3]} 51. Rf3 {[%clk 0:00:07]}
51... Rg2+ {[%clk 0:00:10.6]} 52. Kh1 {[%clk 0:00:07.8]} 52... Raf2 {[%clk
0:00:11]} 53. Rxf2 {[%clk 0:00:08]} 53... Rxf2 {[%clk 0:00:11.9]} 54. Kg1 {[%clk
0:00:08.8]} 54... Ra2 {[%clk 0:00:11.5]} 55. Nh2 {[%clk 0:00:09.3]} 55... Kf6
{[%clk 0:00:12.1]} 56. Nf1 {[%clk 0:00:10.2]} 56... Kf5 {[%clk 0:00:12.5]} 57.
Ne3+ {[%clk 0:00:10.8]} 57... Ke4 {[%clk 0:00:13.1]} 58. Nf1 {[%clk 0:00:11.7]}
58... Kf3 {[%clk 0:00:13.5]} 0-1